Cogmind - Beta 10.2 @@@ ROGUE MODE // 2021.10.02 @ 20:06:09 Player: Enzo Result: Destroyed by D-53 Grenadier with Mini Grenade Launcher Performance ------------- Evolutions (0) 0 Regions Visited (2) 400 Robots Destroyed (21) 105 Value Destroyed (350) 350 Prototype IDs (0) 0 Alien Tech Used (0) 0 Bonus (0) 0 TOTAL SCORE: 855 Bonus ------- None Cogmind --------- Core Integrity 0/250 Matter 300/300 Energy 98/100 System Corruption 4% Temperature Cool (0) Movement Core (50) Location -10/Mines Parts ------- > --- POWER (1) -------- (None) > --- PROPULSION (2) --- (None) > --- UTILITY (2) ------ Signal Interpreter > --- WEAPON (2) ------- (None) > --- INVENTORY (4) ---- Light Ion Engine Light Treads Light Treads Light Armor Plating Peak State ------------ > --- POWER ------------ Ion Engine > --- PROPULSION ------- Light Treads Light Treads > --- UTILITY ---------- Small Storage Unit Medium Storage Unit > --- WEAPON ----------- Beam Cannon Beam Cannon > --- INVENTORY -------- Light Ion Engine Light Treads Light Treads Signal Interpreter Improved Terrain Scanner Improved Terrain Scanner Beam Cannon Grenade Launcher [Rating: 8] Favorites ----------- Power Ion Engine Engine Ion Engine Propulsion Light Treads Treads Light Treads Utility Small Storage Unit Storage Small Storage Unit Processor Signal Interpreter Weapon Beam Cannon Energy Gun Small Laser Energy Cannon Beam Cannon Ballistic Gun Light Assault Rifle Ballistic Cannon Light Cannon Launcher Grenade Launcher Build | -11 -10 -10 ------- Run | Scr Mat Min Slots Evolved . | . . . Power . | . . . Propulsion . | . . . Utility . | . . . Weapon . | . . . Parts Attached 20 | 6 14 . Power 1 | 1 . . Engine 1 | 1 . . Core . | . . . Reactor . | . . . Propulsion 5 | 2 3 . Treads 5 | 2 3 . Leg . | . . . Wheel . | . . . Hover . | . . . Flight . | . . . Utility 4 | 1 3 . Device . | . . . Storage 3 | 1 2 . Processor 1 | . 1 . Hackware . | . . . Protection . | . . . Artifact . | . . . Weapon 10 | 2 8 . Energy Gun 4 | 2 2 . Energy Cannon 2 | . 2 . Ballistic Gun 1 | . 1 . Ballistic Cannon 1 | . 1 . Launcher 2 | . 2 . Special Weapon . | . . . Impact Weapon . | . . . Slashing Weapon . | . . . Piercing Weapon . | . . . Special Melee Weapon . | . . . Unidentified Prototypes . | . . . Parts Lost 2 | . 1 1 Power . | . . . Propulsion . | . . . Utility . | . . . Weapon 2 | . 1 1 Highest Loss Streak 1 | . 1 1 Average Slot Usage (%) 93 | . 95 61 Engine 13 | . 14 8 Treads 27 | . 28 16 Storage 17 | . 18 8 Processor 7 | . 7 14 Energy Gun 7 | . 8 . Energy Cannon 9 | . 9 6 Ballistic Cannon 6 | . 6 8 Launcher 1 | . 1 . Naked Turns . | . . . Heaviest Build 27 | 12 27 27 Greatest Support 40 | 40 40 40 Greatest Overweight (x) . | . . . Average Overweight (x) . | . . . Largest Inventory Capacity 10 | 6 10 10 Average Capacity 8 | 5 9 7 Most Carried 9 | 4 9 8 Average Carried 6 | 2 6 6 Final Capacity 10 | 6 10 4 Final Carried 8 | 4 8 4 Class Distribution -------------------- 100% | Mutant Dominant Class ---------------- Mutant | -10/Materials Mutant | -10/Mines Resources | -11 -10 -10 ----------- Run | Scr Mat Min Matter Collected 480 | 260 220 . Remotely . | . . . Salvage Created 579 | 148 431 . Parts 41 | 11 30 . Haulers Intercepted 2 | . 2 . Recyclers Shooed . | . . . Parts Field Recycled . | . . . Retrieved Matter . | . . . Parts Self-Destructed . | . . . Prevented . | . . . Kills | -11 -10 -10 ------- Run | Scr Mat Min Combat Hostiles Destroyed 9 | . 9 . Guns 4 | . 4 . AOE 5 | . 5 . Classes Destroyed 9 | 2 7 . Worker 1 | . 1 . Builder 2 | . 2 . Tunneler 3 | 3 . . Hauler 2 | . 2 . Recycler 1 | 1 . . Operator 1 | . 1 . Watcher 2 | . 2 . Swarmer 3 | . 3 . Grunt 6 | . 6 . Best Kill Streak 8 | 2 8 . Combat Bots Only 4 | . 4 . Max Kills in Single Turn 2 | 1 2 . Gunslinging . | . . . Exploded 2 | . 2 . Melee . | . . . Uniques/NPCs Destroyed . | . . . Combat | -11 -10 -10 -------- Run | Scr Mat Min Damage Taken 882 | . 360 522 Core 265 | . 75 190 Absorbed by Shields . | . . . Core Remaining (%) 100 | 100 . . Volleys Fired 49 | 6 43 . Largest 2 | 2 2 . Hottest 120 | 90 120 . Shots Fired 80 | 12 68 . Gun 67 | 12 55 . Cannon 6 | . 6 . Launcher 7 | . 7 . Special . | . . . Kinetic 12 | . 12 . Thermal 61 | 12 49 . Explosive 7 | . 7 . Electromagnetic . | . . . Robot Hit Streak 9 | 6 9 . Robot Miss Streak 3 | 1 3 . Penetration Max . | . . . Secondary Targets . | . . . Shots Hit Robots 53 | 10 43 . Core Hits 35 | 5 29 1 Critical Hits . | . . . Critical Kills . | . . . Critical Parts Destroyed . | . . . Melee Attacks . | . . . Impact . | . . . Slashing . | . . . Piercing . | . . . Sneak Attacks . | . . . Combat Hostiles . | . . . Follow-up Attacks . | . . . Damage Inflicted 933 | 105 822 6 Guns 516 | 105 411 . Cannons 69 | . 69 . Explosions 342 | . 342 . Melee . | . . . Ramming 6 | . . 6 Kinetic 94 | . 94 . Thermal 491 | 105 386 . Explosive 342 | . 342 . Electromagnetic . | . . . Impact . | . . . Slashing . | . . . Piercing . | . . . Highest Corruption 4 | . . 4 Average Corruption 4 | . . 4 Corruption Purged . | . . . Effects 1 | . . 1 Heat Flow Errors 1 | . . 1 Overload Shots . | . . . Overflow Damage . | . . . Projectiles . | . . . Explosions . | . . . Melee . | . . . Knockbacks . | . . . Impact . | . . . Kinetic . | . . . Secondary . | . . . Self-Inflicted Damage 3 | . . 3 Shots . | . . . Rammed 2 | . . 2 Targets Rammed 2 | . . 2 Kicked . | . . . Crushed . | . . . Highest Temperature 253 | 90 246 253 Average Temperature 69 | 33 72 101 Received Heat Transfer 234 | . 174 60 Siege Activations . | . . . Robots Corrupted . | . . . Combat Hostiles . | . . . Parts Fried . | . . . Impact Corruptions . | . . . Robots Melted . | . . . Combat Hostiles . | . . . Parts Melted 1 | . 1 . Heat Transferred 1324 | 285 1039 . Parts Sabotaged . | . . . Parts Stolen . | . . . Parts Stripped . | . . . Power Chain Reactions . | . . . Missiles Intercepted . | . . . Alert | -11 -10 -10 ------- Run | Scr Mat Min Peak Influence 316 | 20 316 18 Initial 18 | . 13 18 Average 111 | 9 139 12 Maximum Alert Level 1 | . 1 . Low Security (%) 86 | 100 82 100 Level 1 13 | . 17 . Level 2 . | . . . Level 3 . | . . . Level 4 . | . . . Level 5 . | . . . High Security . | . . . Max Security . | . . . Squads Dispatched 3 | . 3 . Investigation 1 | . 1 . Extermination . | . . . Reinforcement 2 | . 2 . Assault . | . . . Garrison . | . . . Intercept . | . . . Construction Impeded . | . . . Haulers Reinforced . | . . . Stealth | -11 -10 -10 --------- Run | Scr Mat Min Distress Signals . | . . . Communications Jammed . | . . . Distress Signals . | . . . Times Spotted 38 | . 16 22 Peak Tracking Total 16 | . 4 16 Tactical Retreats 3 | . 1 2 Traps | -11 -10 -10 ------- Run | Scr Mat Min Traps Triggered 1 | . 1 . Indirectly . | . . . Trap Hack Attempts . | . . . Triggered . | . . . Disarmed . | . . . Reprogrammed . | . . . Reused 1 | . . 1 Traps Extracted . | . . . Installed 1 | . . 1 Triggered . | . . . Machines | -11 -10 -10 ---------- Run | Scr Mat Min Machines Disabled . | . . . Max in Single Turn . | . . . Machines Sabotaged . | . . . Garrisons Compromised . | . . . Overloaded Fab Kills . | . . . Fab Network Shutdowns . | . . . Hacking | -11 -10 -10 --------- Run | Scr Mat Min Machines Accessed 5 | . 5 . Terminals 4 | . 4 . Fabricators . | . . . Repair Stations 1 | . 1 . Recycling Units . | . . . Scanalyzers . | . . . Garrison Access . | . . . Total Hacks 15 | . 15 . Successful 7 | . 7 . Failed 8 | . 8 . Catastrophic 1 | . 1 . Database Lockouts . | . . . Manual 9 | . 9 . Terminals 13 | . 13 . Fabricators . | . . . Repair Stations 2 | . 2 . Recycling Units . | . . . Scanalyzers . | . . . Garrison Access . | . . . Terminal Hacks 2 | . 2 . Locate Traps 2 | . 2 . Fabricator Hacks . | . . . Repair Station Hacks 1 | . 1 . Scan Component 1 | . 1 . Recycling Unit Hacks . | . . . Scanalyzer . | . . . Garrison Access Hacks . | . . . Unauthorized Hacks 4 | . 4 . Terminals 4 | . 4 . Botnet 4 | . 4 . Fabricators . | . . . Repair Stations . | . . . Recycling Units . | . . . Scanalyzers . | . . . Garrison Access . | . . . Data Cores Recovered . | . . . Used . | . . . Hacking Detections 5 | . 5 . Full Trace Events . | . . . Feedback Events . | . . . Feedback Blocked . | . . . Robot Schematics Acquired . | . . . Robots Built . | . . . Matter . | . . . Time . | . . . Total Robot Build Rating . | . . . Part Schematics Acquired . | . . . Parts Built . | . . . Matter . | . . . Time . | . . . Total Part Build Rating . | . . . Parts Repaired . | . . . Time . | . . . Parts Recycled . | . . . Recycled Matter . | . . . Retrieved Matter . | . . . Retrieved Components . | . . . Parts Scanalyzed . | . . . Part Schematics Acquired . | . . . Parts Damaged . | . . . Bothacking | -11 -10 -10 ------------ Run | Scr Mat Min Used RIF Installer . | . . . Robots Hacked . | . . . Non-combat . | . . . Combat . | . . . Robot Hacks Applied . | . . . Relay Couplers Released . | . . . Robots Rewired . | . . . Allies Hacked . | . . . Hacks Repelled . | . . . Allies | -11 -10 -10 -------- Run | Scr Mat Min Total Allies . | . . . Largest Group . | . . . Highest-Rated Group . | . . . Highest-Rated Ally . | . . . Total Orders . | . . . Ally Attacks . | . . . Total Damage . | . . . Kills . | . . . Allies Corrupted . | . . . Allies Melted . | . . . Intel | -11 -10 -10 ------- Run | Scr Mat Min Robot Analysis Total . | . . . Derelict Logs Recovered . | . . . Drone Launches . | . . . Drone Recoveries . | . . . Exploration | -11 -10 -10 ------------- Run | Scr Mat Min Turns Passed 1282 | 213 1002 67 Spaces Moved 714 | 117 520 77 Core 67 | 11 . 56 Treads 647 | 106 520 21 Legs . | . . . Wheels . | . . . Hover . | . . . Flight . | . . . Fastest Speed 50 | 50 160 50 Average Speed 149 | 149 160 80 Slowest Speed 160 | 160 160 160 Overloaded Moves . | . . . Propulsion Burnouts . | . . . Robots Hopped . | . . . Cave-ins Triggered . | . . . Exploration Rate (%) 38 | 6 85 25 Regions Visited 2 Branch Regions 1 Pre-discovered Areas . | . . . Known Exits Taken 1 | . 1 . Unknown Exits Taken 1 | 1 . . Scrap Searched . | . . . Spaces Dug . | . . . Terrain Destroyed 16 | . 16 . Melee . | . . . Projectile . | . . . AOE 16 | . 16 . Terrain Rammed . | . . . Walls Destroyed . | . . . Machines Disabled . | . . . Actions | -11 -10 -10 --------- Run | Scr Mat Min Total 848 | 140 623 85 Wait 39 | 8 31 . Move 712 | 116 519 77 Hop . | . . . Pick Up 11 | 4 7 . Fast Attach 9 | 6 3 . Attach . | . . . Detach 1 | . 1 . Swap 11 | . 11 . Drop 13 | . 8 5 Fire 49 | 6 43 . Melee . | . . . Ram 2 | . . 2 Kick . | . . . Crush . | . . . Escape Stasis . | . . . Rewire . | . . . Trap 1 | . . 1 Miscellaneous . | . . . Route ------- -11/Scrapyard -10/Materials (discovered 4 exits: *Mat x2 / *Min x2) -10/Mines History --------- Turn | Location | Event 3 | -11/Scrapyard | Discovered new exit (range 15) 214 | -11/Scrapyard | Entered Materials 214 | -10/Materials | Discovered new exit (range 8) 310 | -10/Materials | Build established: Mutant 428 | -10/Materials | Discovered new exit (range 16) 634 | -10/Materials | Discovered new exit (range 4) 705 | -10/Materials | Identified exit to Materials 918 | -10/Materials | Identified exit to Mines 1004 | -10/Materials | Discovered exit to Materials (range 10) 1216 | -10/Materials | Entered Mines 1217 | -10/Mines | Assembled infested the area 1222 | -10/Mines | Assisted by a Guerilla fighting off Assembled 1255 | -10/Mines | Core integrity fell below 50% 1267 | -10/Mines | Core integrity fell below 20% 1268 | -10/Mines | Found a hidden stash of uninstalled traps 1283 | -10/Mines | Destroyed by D-53 Grenadier with Mini Grenade Launcher Last Messages --------------- 01234_ K-01 Serf system terminally corrupted. 01246_ Beam Cannon destroyed. 01246_ System corrupted by crushing effect (+4). 01250_ Dropped Lrg. Storage Unit. 01251_ Dropped Lgt. Treads. 01252_ Dropped Lgt. Cannon. 01252_ Dropped Ion Engine. 01268_ A stash of uninstalled traps is collected here! 01269_ Installed Explosive Trap. 01270_ System corrupted: Heat flow error (+278). 01271_ Slammed into as-82425. 01272_ as-55683 triggered Explosive Trap. 01272_ An explosion rips through the floor. 01272_ as-55683 destroyed. 01272_ as-90872 destroyed. 01272_ Slammed into as-82425. 01278_ R-06 Scavenger collects Fission Core. 01279_ as-33886 sneak attacks. 01279_ R-06 Scavenger destroyed. 01283_ G-47 Trooper knocked back. Map ----- +----------------------------------------------------+ | ??## #### #?????####???# #?????????????? | | ??# #????????????# #?????????????? | | ??# #????????????# #?????????????? | | ???# ##????????????# #?????????????? | | ???########## #?????????????# #?????????????? | | ????????????# #????????###### #?????????????? | | ??########??# #?###### & ## #?????????????? | | ??# #??# #?#$%% % # #?????????????? | | ??# #??# #?# ### % #?????????????? | | ??# #### ### ##### #????????????? | | ??# """ #### #### #????????????? | | ??# """ % %! ##??????###????????????? | | ??# """ ####%! ##????????????????????? | | ??# #??#=%* ##???????????????????? | | ??# #??# * #???????????????????? | | ??########??## #???????????????????? | | ????????????## ##???????????????????? | | ???????????## ##????????????????????? | | ??????????## % ##?????????????????????? | | ??????????# < #??????????????????????? | | ??????????# ##??????????????????????? | | ??????????## #???????????????????????? | | ???????????### #???????????????????????? | | ?????????????## #?????????###???????????? | | ??????????????# #### d % u ????????????? | | ??????????????## # @ % #??????????????????? | | ???????????????#### ######??????????????????? | | ?????????????????# r#???????????????????????? | | ????????????????# ???????????????????????? | | ???????????????# ??????????????????????? | | ??????????????# ??????????????????????? | | ?????????????a ## !%??????????????????????? | | ???????????? #?## ?????????????????????? | | ??????????? #???? ?????????????????????? | | ??????????# #?????# ?????????????????????? | | ??????????# ???????##?????????????????????? | | ??????????## ???????????????????????????????? | | ????????????#????????????????????????????????? | | ?????????????????????????????????????????????? | | ?????????????????????????????????????????????? | | ?????????????????????????????????????????????? | | ?????????????????????????????????????????????? | | | | | | | | | | | | | | | | | +----------------------------------------------------+ Best States ------------- Heat Dissipation 25 Energy Generation 10 Energy Capacity 250 Matter Stores 300 Matter Capacity 300 Sight Range 16 Terrain Scan Density 10 Evasion (%) 50 Recoil Reduction 2 Item Schematics ----------------- None Robot Schematics ------------------ None Fabricated ------------ Nothing Alien Tech Used ----------------- None Achievements -------------- None Challenges ------------ None Game ------ Seed InertialShrapnelNetwork Manual? 0 Play Time 00:11:10 Cumulative 55.4 hours Start 2021.10.02 @ 19:56:14 End 2021.10.02 @ 20:06:09 Sessions 1 Manual Loads 0 Difficulty Rogue Special Mode None Game No. 121 Rogue 121 Adventurer 0 Explorer 0 Win Type - Total 0 Types 0/0/0/0/0/0/0/0/0 Lore% 41 Gallery% 44 Achievement% 35 Wizard Run 0 Options --------- ASCII 0 Keyboard 0 Movement Numpad Keybinds 0 Fullscreen 2 Font 24/Smallcaps Map View 76x50 Tactical HUD 1 Map Filters NONE Filters NONE Steam 1 RUN: ceff82ba-ba14-4c17-9209-ef754862cc9e